bitfinex-derivatives/quotes_BTCF0:USTF0_20241008
["timestamp","ask_amount","ask_price","bid_price","bid_amount"]
[1728406642005,0.259967,62560.0,62559.0,0.15623391]
[1728406642226,1.55608576,62560.0,62546.0,0.00239794]
[1728406642509,0.079983,62547.0,62546.0,0.11139107]
[1728406642818,0.21089756,62547.0,62546.0,0.08238194]
[1728406643019,0.29916452,62547.0,62546.0,0.08238194]
[1728406643825,0.30016452,62547.0,62546.0,0.09638194]
[1728406644325,0.38014752,62547.0,62546.0,0.12456421]
[1728406645308,0.38014752,62547.0,62546.0,0.13856421]
[1728406646219,0.27995985,62547.0,62546.0,0.13856421]
[1728406646519,0.12016452,62547.0,62546.0,0.13856421]
[1728406649315,0.15979533,62549.0,62547.0,0.079983]
[1728406649527,0.18,62548.0,62547.0,0.079983]
[1728406650518,0.18,62548.0,62547.0,0.092983]
[1728406650918,0.259983,62548.0,62547.0,0.106983]
[1728406651621,0.079983,62547.0,62546.0,0.03058021]
[1728406651818,0.079983,62547.0,62546.0,0.25200058]
[1728406652218,0.079983,62547.0,62546.0,0.25159122]
[1728406653123,0.079983,62547.0,62546.0,0.20527588]
[1728406653326,0.079983,62547.0,62546.0,0.11015585]
[1728406653519,0.080983,62547.0,62546.0,0.04417085]
[1728406653918,0.080983,62547.0,62546.0,0.05817085]
[1728406656130,0.080983,62547.0,62546.0,0.13815585]
[1728406656722,0.001,62547.0,62546.0,0.13815585]
[1728406656924,0.001,62547.0,62546.0,0.25686262]
[1728406657237,0.079983,62547.0,62546.0,0.25687554]
[1728406659026,0.259983,62547.0,62546.0,0.25687554]
[1728406661329,0.259983,62547.0,62546.0,0.35195644]
[1728406662136,0.259983,62547.0,62546.0,0.35165937]
[1728406662337,0.259983,62547.0,62546.0,0.25657847]
[1728406662832,0.259983,62547.0,62546.0,0.17659347]
[1728406663033,0.270983,62547.0,62546.0,0.17659347]
[1728406663333,0.270983,62547.0,62546.0,0.05817085]
[1728406663535,1.711423,62547.0,62542.0,0.0792363]
[1728406663736,0.079997,62536.0,62534.0,0.09507016]
[1728406663928,0.080001,62533.0,62532.0,0.17507216]
[1728406664236,0.11090809,62533.0,62532.0,0.080002]
[1728406664742,0.080004,62531.0,62530.0,0.02913935]
[1728406664930,0.080008,62528.0,62526.0,0.080009]
[1728406665126,0.15090709,62527.0,62526.0,0.080009]
[1728406665331,0.51170709,62527.0,62526.0,0.080009]
[1728406666439,0.4808,62527.0,62526.0,0.080009]
[1728406666932,0.560809,62527.0,62526.0,0.080009]
[1728406667236,0.621809,62527.0,62526.0,0.088009]
[1728406667436,0.5418,62527.0,62526.0,0.088009]
[1728406667637,0.5428,62527.0,62526.0,0.088009]
[1728406668543,0.622809,62527.0,62526.0,0.008]
[1728406668836,0.65371787,62527.0,62526.0,0.008]
[1728406669229,0.47371787,62527.0,62526.0,0.008]
[1728406669535,0.65371787,62527.0,62526.0,0.008]
[1728406672335,0.622809,62527.0,62526.0,0.008]
[1728406673530,0.622809,62527.0,62526.0,0.07124649]
[1728406675436,0.622809,62527.0,62526.0,0.008]
[1728406675734,0.622809,62527.0,62526.0,0.08801]
[1728406676334,0.3628,62527.0,62526.0,0.08801]
[1728406676947,0.3628,62527.0,62526.0,0.08700869]
[1728406677155,0.002,62527.0,62526.0,0.08700869]
[1728406677445,0.002,62527.0,62526.0,0.20456639]
[1728406678841,0.5408,62535.0,62534.0,0.08]
[1728406679041,0.620799,62535.0,62532.0,0.06321811]
[1728406679244,0.260001,62533.0,62530.0,0.06321811]
[1728406679432,0.260001,62533.0,62528.0,0.080007]
[1728406679433,0.080006,62529.0,62528.0,0.080007]
[1728406679633,0.18,62531.0,62526.0,0.08700869]
[1728406679839,0.18,62527.0,62526.0,0.08700869]
[1728406680044,0.18,62527.0,62526.0,0.08001]
[1728406681038,0.001,62527.0,62526.0,0.08801]
[1728406682749,0.002,62527.0,62526.0,0.09001]
[1728406686954,0.002,62527.0,62526.0,0.16311]
[1728406687447,0.18,62534.0,62533.0,0.080001]
[1728406688951,0.3608,62535.0,62534.0,0.08]
[1728406689154,0.3608,62535.0,62534.0,0.19761452]
[1728406689450,0.0766,62541.0,62535.0,0.079999]
[1728406689451,0.5408,62541.0,62535.0,0.079999]
[1728406689658,0.620791,62541.0,62536.0,0.11761452]
[1728406689955,0.5408,62541.0,62540.0,0.079992]
[1728406690655,0.5408,62541.0,62540.0,0.19753258]
[1728406691045,0.5418,62541.0,62540.0,0.19753258]
[1728406691252,0.001,62541.0,62540.0,0.19753258]
[1728406692360,0.003,62541.0,62540.0,0.19753258]
[1728406692547,0.003,62541.0,62540.0,0.33731214]
[1728406693658,0.003,62541.0,62540.0,0.36318863]
[1728406694258,0.003,62541.0,62540.0,0.22340907]
[1728406694457,0.25307464,62541.0,62540.0,0.10586849]
[1728406694764,0.35955172,62541.0,62540.0,0.10586849]
[1728406696247,0.17955172,62541.0,62540.0,0.46666849]
[1728406696447,0.20646073,62541.0,62540.0,1.5956196]
[1728406696654,0.08000258,62541.0,62540.0,1.6756116]
[1728406696953,0.20644494,62541.0,62540.0,1.6756116]
[1728406697154,0.25549503,62541.0,62540.0,1.6756116]
[1728406697457,0.08000258,62541.0,62540.0,1.6756116]
[1728406697863,0.06079767,62541.0,62540.0,1.6756116]
[1728406698048,0.12212174,62541.0,62540.0,0.62185144]
[1728406698248,0.079963,62563.0,62555.0,0.079973]
[1728406698555,0.079963,62563.0,62561.0,0.079964]
[1728406698758,0.2957,62564.0,62562.0,0.079963]
[1728406698963,0.2957,62564.0,62549.0,0.18]
[1728406698964,0.2957,62564.0,62563.0,0.079963]
[1728406700359,0.3007,62564.0,62563.0,0.001]
[1728406700651,0.3037,62564.0,62563.0,0.080963]
[1728406700850,0.2997,62564.0,62563.0,0.079963]
[1728406701159,0.35705823,62564.0,62563.0,0.079963]
[1728406701345,0.17705825,62564.0,62563.0,0.079963]
[1728406701656,0.004,62564.0,62563.0,0.28544983]
[1728406702655,0.1054,62572.0,62563.0,0.28544983]
[1728406702656,0.1054,62572.0,62571.0,0.079953]
[1728406703755,0.1094,62572.0,62571.0,0.079953]
[1728406704157,0.004,62572.0,62571.0,0.079953]
[1728406704460,0.007,62572.0,62571.0,0.079953]
[1728406704672,0.007,62572.0,62571.0,0.559393]
[1728406704962,0.309037,62584.0,62580.0,0.079941]
[1728406705168,0.309037,62584.0,62577.0,0.079944]
[1728406705169,0.25994,62582.0,62577.0,0.079944]
[1728406705359,0.25994,62582.0,62578.0,0.079943]
[1728406705556,0.18,62582.0,62572.0,0.079951]
[1728406705864,0.18,62582.0,62579.0,0.079942]
[1728406706057,0.18,62582.0,62580.0,0.001]
[1728406706458,0.194,62582.0,62580.0,0.001]
[1728406706662,0.07994,62581.0,62580.0,0.001]
[1728406706854,0.194,62582.0,62577.0,0.001]
[1728406706855,0.079942,62580.0,62577.0,0.001]
[1728406707056,0.18,62578.0,62576.0,0.079945]
[1728406708158,0.079946,62577.0,62572.0,0.07995]
[1728406708361,0.079946,62577.0,62570.0,0.00239714]
[1728406708362,0.18,62572.0,62570.0,0.00239714]
[1728406708664,0.3365,62571.0,62570.0,0.00239714]
[1728406708860,0.3365,62571.0,62570.0,0.08235114]
[1728406709362,0.00084,62572.0,62571.0,0.079953]
[1728406709561,0.07003901,62572.0,62570.0,0.02588178]
[1728406709864,0.07003901,62572.0,62567.0,0.11939074]
[1728406709865,0.05734402,62576.0,62575.0,0.079948]
[1728406710074,0.07003575,62576.0,62575.0,0.06239062]
[1728406710368,0.11911035,62576.0,62575.0,0.06239062]
[1728406712469,0.12511035,62576.0,62575.0,0.06339062]
[1728406712658,0.13311035,62576.0,62575.0,0.06439062]
[1728406712861,0.13311117,62576.0,62575.0,0.09030478]
[1728406713465,0.21932515,62576.0,62575.0,0.09030478]
[1728406713769,0.30755017,62576.0,62575.0,0.09030478]
[1728406714369,0.13311117,62576.0,62575.0,0.09030478]
[1728406715368,0.30755017,62576.0,62575.0,0.09030478]
[1728406716559,0.188439,62576.0,62575.0,0.09030478]
[1728406716766,0.014,62576.0,62575.0,0.09030478]
[1728406717367,0.273946,62576.0,62575.0,0.02791416]
[1728406719564,0.079953,62571.0,62569.0,0.10579851]
[1728406719764,0.3991,62570.0,62569.0,0.10579851]
[1728406720365,0.3991,62570.0,62569.0,0.02584451]
[1728406720565,0.479054,62570.0,62568.0,0.079956]
[1728406720765,0.479054,62570.0,62562.0,0.02769063]
[1728406720766,0.3991,62570.0,62562.0,0.02769063]
[1728406721074,0.3991,62570.0,62567.0,0.079957]
[1728406721470,0.3991,62570.0,62562.0,0.00239726]
[1728406721666,0.4011,62570.0,62568.0,0.079956]
[1728406722074,0.481055,62570.0,62566.0,0.079958]
[1728406722777,0.116,62569.0,62566.0,0.079958]
[1728406722973,0.195955,62569.0,62566.0,0.079958]
[1728406723378,0.079958,62568.0,62563.0,0.079963]
[1728406723687,0.116,62569.0,62565.0,0.079959]
[1728406723688,0.195955,62569.0,62565.0,0.079959]
[1728406723870,0.116,62569.0,62565.0,0.079959]
[1728406726688,0.200955,62569.0,62567.0,0.12745901]
[1728406726989,0.001,62568.0,62567.0,0.12745901]
[1728406727182,0.001,62568.0,62567.0,0.080957]
[1728406727383,0.195955,62569.0,62567.0,0.080957]
[1728406727585,0.001,62569.0,62568.0,0.079957]
[1728406727985,0.3608,62572.0,62567.0,0.06433602]
[1728406728290,0.3608,62572.0,62571.0,0.079953]
[1728406728682,0.1061,62576.0,62575.0,0.079948]
[1728406728879,0.1061,62576.0,62575.0,0.12738268]
[1728406730394,0.200046,62576.0,62575.0,0.15507051]
[1728406730689,0.1201,62576.0,62575.0,0.15507051]
[1728406730994,0.1201,62576.0,62575.0,0.10760828]
[1728406731182,0.014,62576.0,62575.0,0.10760828]
[1728406731581,0.13311489,62576.0,62575.0,0.079948]
[1728406732185,0.13311014,62576.0,62575.0,0.079948]
[1728406735087,0.13311014,62576.0,62575.0,0.259948]
[1728406736503,0.13311014,62576.0,62575.0,0.079948]
[1728406736793,0.09329741,62576.0,62575.0,0.259948]
[1728406736994,0.07995209,62576.0,62575.0,0.259948]
[1728406737199,0.04486109,62576.0,62575.0,0.259948]
[1728406739505,0.3608,62584.0,62583.0,0.079937]
[1728406740701,0.002,62584.0,62583.0,0.260937]
[1728406740889,0.007,62584.0,62583.0,0.261937]
[1728406741499,0.007,62584.0,62583.0,0.081937]
[1728406742697,0.007,62584.0,62583.0,0.261937]
[1728406742998,0.007,62584.0,62583.0,0.28723826]
[1728406744198,0.0037,62594.0,62593.0,0.079925]
[1728406744400,0.1167,62596.0,62595.0,0.079922]
[1728406745300,0.1104,62600.0,62599.0,0.079917]
[1728406745798,0.3608,62604.0,62599.0,0.079917]
[1728406746001,0.3608,62604.0,62603.0,0.079912]
[1728406746302,0.3608,62604.0,62601.0,0.18]
[1728406746303,0.1134,62606.0,62605.0,0.079909]
[1728406746488,0.079904,62610.0,62607.0,0.079906]
[1728406746695,0.03913723,62609.0,62607.0,0.079906]
[1728406746997,0.03913723,62608.0,62607.0,0.079906]
[1728406747207,0.03087067,62608.0,62607.0,0.079906]
[1728406747496,0.03087067,62608.0,62601.0,0.3608]
[1728406747703,0.03087067,62607.0,62604.0,0.07991]
[1728406747887,0.079904,62609.0,62604.0,0.07991]
[1728406747888,0.03087067,62606.0,62604.0,0.07991]
[1728406748092,0.03087067,62605.0,62604.0,0.07991]
[1728406748504,0.079906,62608.0,62607.0,0.001]
[1728406748693,0.11077604,62608.0,62607.0,0.001]
[1728406749401,0.11077604,62608.0,62605.0,0.079908]
[1728406749598,0.03087004,62607.0,62605.0,0.079908]
[1728406749806,0.086906,62608.0,62605.0,0.079908]
[1728406749998,0.03087012,62607.0,62606.0,0.079908]
[1728406750693,0.11077712,62607.0,62606.0,0.079908]
[1728406750889,0.01,62608.0,62607.0,0.079907]
[1728406751093,0.04087018,62608.0,62607.0,0.079907]
[1728406751897,0.03087018,62608.0,62607.0,0.079907]
[1728406752799,0.03087032,62608.0,62607.0,0.079907]
[1728406752994,0.03687032,62608.0,62607.0,0.080907]
[1728406753402,0.04387032,62608.0,62607.0,0.081907]
[1728406754702,0.04387032,62608.0,62597.0,0.259919]
[1728406754703,0.13205979,62608.0,62597.0,0.24951685]
[1728406755001,0.13205979,62608.0,62606.0,0.079908]
[1728406755002,0.17637882,62607.0,62606.0,0.079908]
[1728406755196,0.11905979,62607.0,62606.0,0.079908]
[1728406755705,0.08818947,62607.0,62606.0,0.079908]
[1728406756101,0.08818947,62607.0,62606.0,0.259908]
[1728406756400,0.08818947,62607.0,62606.0,0.88866884]
[1728406756604,0.0008,62620.0,62612.0,0.3608]
[1728406756798,0.008,62634.0,62633.0,0.079874]
[1728406756799,0.0008,62634.0,62633.0,0.079874]
[1728406756995,0.195865,62640.0,62636.0,0.079869]
[1728406757208,0.116,62640.0,62633.0,0.3608]
[1728406757500,0.116,62640.0,62639.0,0.440666]
[1728406758508,0.079867,62639.0,62633.0,0.3618]
[1728406758802,0.18,62636.0,62634.0,0.079872]
[1728406759007,0.375865,62640.0,62636.0,0.079869]
[1728406759312,0.079866,62639.0,62636.0,0.079869]
[1728406760403,0.079866,62639.0,62633.0,0.39010784]
[1728406760600,0.18,62635.0,62634.0,0.079872]
[1728406763015,0.181,62635.0,62634.0,0.079872]
[1728406763408,0.18,62635.0,62634.0,0.079872]
[1728406764106,0.18,62635.0,62633.0,0.39010784]
[1728406764307,0.079872,62634.0,62633.0,0.02930784]
[1728406764512,0.079877,62631.0,62628.0,0.079879]
[1728406764703,0.18,62629.0,62628.0,0.079879]
[1728406766107,0.18,62629.0,62628.0,0.081879]
[1728406766307,0.18,62629.0,62628.0,0.002]
[1728406766511,0.5408,62629.0,62628.0,0.003]
[1728406766806,0.620679,62629.0,62628.0,0.003]
[1728406767003,0.620679,62629.0,62628.0,0.002]
[1728406767211,0.620679,62629.0,62628.0,0.003]
[1728406770621,0.620679,62629.0,62628.0,0.00273275]
[1728406771226,0.079881,62627.0,62626.0,0.03124888]
[1728406771607,0.079881,62627.0,62626.0,0.00239479]
[1728406771817,0.079881,62627.0,62621.0,0.079888]
[1728406771818,0.194181,62627.0,62621.0,0.079888]
[1728406772007,0.620688,62622.0,62621.0,0.079888]
[1728406773539,0.620688,62622.0,62621.0,0.009]
[1728406774313,0.620688,62622.0,62621.0,0.04748514]
[1728406775824,0.620688,62622.0,62621.0,0.018]
[1728406776723,0.42082047,62622.0,62621.0,0.23476334]
[1728406777815,0.42082047,62622.0,62621.0,0.13975931]
[1728406778723,0.07989,62620.0,62619.0,0.07868775]
[1728406779025,0.07989,62620.0,62614.0,0.09500403]
[1728406779026,0.079898,62614.0,62604.0,0.0111]
[1728406779240,0.259907,62607.0,62603.0,0.02898861]
[1728406779529,0.259907,62607.0,62605.0,0.079908]
[1728406779721,0.259907,62607.0,62603.0,0.02898861]
[1728406780037,0.259907,62607.0,62603.0,0.10889961]
[1728406780726,0.259907,62607.0,62606.0,0.00339425]
[1728406781043,0.261907,62607.0,62606.0,0.00339425]
[1728406781417,0.265907,62607.0,62606.0,0.00339425]
[1728406782222,0.493107,62607.0,62606.0,0.00339425]
[1728406782618,0.491107,62607.0,62606.0,0.00239425]
[1728406782818,0.497107,62607.0,62606.0,0.00339425]
[1728406784024,0.497107,62607.0,62606.0,0.08330225]
[1728406784025,0.201107,62607.0,62606.0,0.08330225]
[1728406786331,0.1212,62607.0,62606.0,0.08330225]
[1728406786529,0.01,62607.0,62606.0,0.08330225]
[1728406790325,0.01,62607.0,62606.0,0.080908]
[1728406793833,0.01,62607.0,62606.0,0.20268709]
[1728406794137,0.01,62607.0,62606.0,0.080908]
[1728406794338,0.089907,62607.0,62606.0,0.080908]
[1728406794637,0.01,62607.0,62606.0,0.080908]
[1728406797632,0.089907,62607.0,62606.0,0.001]
[1728406799932,0.089907,62607.0,62606.0,0.080908]
[1728406800141,0.01,62607.0,62606.0,0.080908]
[1728406800533,0.01,62607.0,62606.0,0.14398947]
[1728406803548,0.01,62607.0,62606.0,0.080908]
[1728406803841,0.089907,62607.0,62606.0,0.001]
[1728406804340,0.198307,62607.0,62606.0,0.001]
[1728406804832,0.198307,62607.0,62606.0,0.04833676]
[1728406805034,0.918307,62607.0,62601.0,0.06310586]
[1728406805233,0.918307,62607.0,62589.0,0.09459808]
[1728406805234,0.18,62604.0,62598.0,0.06310586]
[1728406805434,0.259917,62599.0,62594.0,0.38989723]
[1728406805636,0.079922,62595.0,62594.0,0.46982023]
[1728406807038,0.259922,62595.0,62594.0,0.03209723]
[1728406807243,0.259922,62595.0,62594.0,0.003]
[1728406807244,0.34813064,62595.0,62594.0,0.003]
[1728406807433,0.079934,62586.0,62585.0,0.0037]
[1728406807747,0.03914413,62586.0,62585.0,0.079935]
[1728406808846,0.11907813,62586.0,62585.0,0.079935]
[1728406809042,0.079937,62583.0,62582.0,0.02816743]
[1728406809247,0.079945,62577.0,62574.0,0.079948]
[1728406809544,0.18,62577.0,62572.0,0.4719]
[1728406809752,0.079949,62575.0,62572.0,0.46983571]
[1728406809938,0.079949,62574.0,62572.0,0.38988571]
[1728406810134,0.03915326,62573.0,62572.0,0.46983671]
[1728406810340,0.079949,62574.0,62572.0,0.46983671]
[1728406810539,0.079942,62580.0,62573.0,0.079949]
[1728406810753,0.18,62574.0,62573.0,0.079949]
[1728406811164,0.1118,62576.0,62572.0,0.33905961]
[1728406811366,0.001,62577.0,62572.0,0.33905961]
[1728406811555,0.001,62577.0,62576.0,0.079946]
[1728406812064,0.001,62577.0,62573.0,0.07995]
[1728406812257,0.001,62577.0,62572.0,0.35305961]
[1728406812258,0.079946,62576.0,62572.0,0.35305961]
[1728406812571,0.079946,62576.0,62574.0,0.079948]
[1728406813160,0.079946,62576.0,62572.0,0.33905961]
[1728406813161,0.07995,62574.0,62572.0,0.33905961]
[1728406813353,0.181,62573.0,62572.0,0.35305961]
[1728406813558,0.181,62573.0,62572.0,0.35605961]
[1728406813752,0.18,62573.0,62572.0,0.34205961]
[1728406814257,0.18,62576.0,62572.0,0.34205961]
[1728406814559,0.18,62576.0,62574.0,0.079949]
[1728406814763,0.09994473,62576.0,62575.0,0.12184181]
[1728406814965,0.079947,62576.0,62575.0,0.12184181]
[1728406815363,0.259947,62576.0,62575.0,0.12184181]
[1728406815866,0.079948,62575.0,62573.0,0.07866791]
[1728406816068,0.07995,62573.0,62572.0,0.33905961]
[1728406816268,0.079948,62575.0,62572.0,0.33905961]
[1728406816871,0.07995,62573.0,62572.0,0.33905961]
[1728406818070,0.07995,62573.0,62572.0,0.02908571]
[1728406818270,0.001,62575.0,62569.0,0.07866791]
[1728406818463,0.079952,62572.0,62569.0,0.079955]
[1728406818657,0.259946,62576.0,62567.0,0.07866791]
[1728406818658,0.190254,62571.0,62567.0,0.07866791]
[1728406818861,0.190254,62571.0,62568.0,0.079956]
[1728406819063,0.190254,62571.0,62569.0,0.079955]
[1728406819262,0.551054,62571.0,62569.0,0.079955]
[1728406819468,0.551054,62571.0,62567.0,0.02934705]
[1728406819469,0.1103,62571.0,62570.0,0.079954]
[1728406821773,0.0702968,62571.0,62570.0,0.079954]
[1728406821981,0.0702968,62571.0,62570.0,0.081954]
[1728406822671,0.0702968,62571.0,62570.0,0.083954]
[1728406824474,0.3608,62577.0,62570.0,0.004]
[1728406824670,0.440745,62577.0,62570.0,0.004]
[1728406824875,0.440745,62577.0,62571.0,0.079953]
[1728406825181,0.440745,62577.0,62570.0,0.3648]
[1728406825678,0.440745,62577.0,62574.0,0.079948]
[1728406825876,0.440745,62577.0,62575.0,0.079947]
[1728406826871,0.440745,62577.0,62576.0,0.079946]
[1728406827172,0.442745,62577.0,62576.0,0.079946]
[1728406827677,0.622745,62577.0,62576.0,0.079946]
[1728406828480,0.620745,62577.0,62576.0,0.082946]
[1728406831472,0.259945,62577.0,62576.0,0.082946]
[1728406831669,0.259945,62577.0,62576.0,0.1459362]
[1728406832371,0.259945,62577.0,62576.0,0.082946]
[1728406832777,0.197543,62579.0,62578.0,0.079944]
[1728406833872,0.198543,62579.0,62578.0,0.079944]
[1728406834875,0.197543,62579.0,62578.0,0.079944]
[1728406835072,0.198543,62579.0,62578.0,0.079944]
[1728406836479,0.198543,62579.0,62578.0,0.28045668]
[1728406836672,0.198543,62579.0,62578.0,0.20178877]
[1728406836868,0.1186,62579.0,62578.0,0.28179928]
[1728406837074,0.197542,62579.0,62578.0,0.20278877]
[1728406837271,0.197542,62579.0,62578.0,0.28180267]
[1728406837577,0.197542,62579.0,62578.0,0.20278877]
[1728406838973,0.197542,62579.0,62578.0,0.12284477]
[1728406839375,0.197542,62579.0,62578.0,0.20278877]
[1728406839779,0.197542,62579.0,62578.0,0.2027924]
[1728406842275,0.197542,62579.0,62578.0,0.080944]
[1728406842584,0.197542,62579.0,62578.0,0.20279058]
[1728406844290,0.1145,62582.0,62578.0,0.20279058]
[1728406844584,0.194439,62582.0,62581.0,0.17453808]
[1728406844794,0.374439,62582.0,62581.0,0.20178658]
[1728406844976,0.49354977,62582.0,62581.0,0.07994]
[1728406846788,0.49854977,62582.0,62581.0,0.07994]
[1728406846996,0.20404977,62582.0,62581.0,0.07994]
[1728406848089,0.20204977,62582.0,62581.0,0.07994]
[1728406848292,0.20304977,62582.0,62581.0,0.07994]
[1728406848493,0.20504977,62582.0,62581.0,0.07994]
[1728406849494,0.20504643,62582.0,62581.0,0.07994]
[1728406849688,0.20104643,62582.0,62581.0,0.08094]
[1728406850081,0.19904643,62582.0,62581.0,0.08094]
[1728406851996,0.079939,62582.0,62581.0,0.08094]
[1728406854085,0.07993,62590.0,62581.0,0.5418]
[1728406854287,0.079933,62587.0,62586.0,0.079932]
[1728406855200,0.079933,62587.0,62586.0,0.14326692]
[1728406856294,0.259933,62587.0,62585.0,0.06333492]
[1728406856489,0.259933,62587.0,62583.0,0.079937]
[1728406856490,0.3608,62586.0,62583.0,0.079937]
[1728406856698,0.440734,62586.0,62585.0,0.06333046]
[1728406857088,0.079936,62584.0,62583.0,0.06333478]
[1728406857287,0.07994,62581.0,62580.0,0.06333478]
[1728406857495,0.18,62581.0,62579.0,0.06334816]
[1728406857699,0.202341,62580.0,62579.0,0.06334816]
[1728406857899,0.382341,62580.0,62578.0,0.06334816]
[1728406858099,0.2295,62579.0,62578.0,0.06334773]
[1728406858291,0.309442,62579.0,62578.0,0.06334773]
[1728406858896,0.2295,62579.0,62578.0,0.06334773]
[1728406859697,0.309442,62579.0,62578.0,0.06334773]
[1728406860087,0.079945,62577.0,62568.0,0.00355666]
[1728406860296,0.259955,62569.0,62568.0,0.08235266]
[1728406860590,0.37906977,62569.0,62568.0,0.08235266]
[1728406861100,0.07003832,62569.0,62568.0,0.08235266]
[1728406861294,0.03088466,62569.0,62568.0,0.44315266]
[1728406861604,0.0057,62579.0,62578.0,0.079944]
[1728406861798,0.002,62579.0,62578.0,0.259944]
[1728406862297,0.3608,62586.0,62578.0,0.259944]
[1728406862298,0.03915003,62582.0,62578.0,0.259944]
[1728406862600,0.03914822,62581.0,62580.0,0.079941]
[1728406862797,0.03914813,62581.0,62578.0,0.259944]
[1728406863104,0.002,62579.0,62578.0,0.259944]
[1728406863295,0.04414821,62579.0,62578.0,0.259944]
[1728406863796,0.03914821,62579.0,62578.0,0.259944]
[1728406865090,0.04214821,62579.0,62578.0,0.259944]
[1728406865892,0.04414821,62579.0,62578.0,0.259944]
[1728406866999,0.30353894,62591.0,62578.0,0.52793977]
[1728406867195,0.079931,62588.0,62586.0,0.17490597]
[1728406867398,0.07993,62589.0,62588.0,0.07993]
[1728406867601,0.07993,62589.0,62588.0,0.2017566]
[1728406867896,0.07993,62589.0,62588.0,0.1218266]
[1728406868597,0.07993,62589.0,62588.0,0.2017576]
[1728406868802,0.17883449,62591.0,62590.0,0.079928]
[1728406869097,0.25876149,62591.0,62590.0,0.2017546]
[1728406869289,0.25876149,62591.0,62590.0,0.1218266]
[1728406869490,0.17183449,62591.0,62589.0,0.09497297]
[1728406869793,0.17183449,62591.0,62588.0,0.10839101]
[1728406869794,0.006,62589.0,62588.0,0.20336398]
[1728406869994,0.013,62589.0,62588.0,0.32615165]
[1728406870494,0.194,62591.0,62590.0,0.001]
[1728406870797,0.273927,62591.0,62590.0,0.12278767]
[1728406871201,0.266927,62591.0,62590.0,0.12178767]
[1728406871797,0.273927,62591.0,62590.0,0.12278767]
[1728406871997,0.266927,62591.0,62590.0,0.12278767]
[1728406872810,0.273927,62591.0,62590.0,0.12378767]
[1728406874999,0.45036052,62591.0,62590.0,0.002]
[1728406876297,0.62598793,62591.0,62590.0,0.081928]
[1728406876504,0.38865116,62591.0,62590.0,0.081928]
[1728406876697,0.21302375,62591.0,62590.0,0.081928]
[1728406876895,0.13309675,62591.0,62590.0,0.081928]
[1728406877098,0.21302375,62591.0,62590.0,0.081928]
[1728406879206,0.13309675,62591.0,62590.0,0.081928]
[1728406880907,0.21302375,62591.0,62590.0,0.081928]
[1728406881113,0.39302375,62591.0,62590.0,0.081928]
[1728406881406,0.62598802,62591.0,62590.0,0.081928]
[1728406881806,0.56865116,62591.0,62590.0,0.081928]
[1728406881998,0.44955441,62591.0,62590.0,0.081928]
[1728406882202,0.273927,62591.0,62590.0,0.081928]
[1728406882509,0.273927,62591.0,62590.0,0.002]
[1728406882698,0.079935,62585.0,62582.0,0.06330972]
[1728406882903,0.079937,62583.0,62582.0,0.06330972]
[1728406883104,0.079937,62583.0,62580.0,0.14325072]
[1728406883302,0.25994,62581.0,62580.0,0.079941]
[1728406883507,0.25994,62581.0,62580.0,0.10943718]
[1728406884712,0.25994,62581.0,62580.0,0.03049618]
[1728406884911,0.37944,62581.0,62580.0,0.001]
[1728406885904,0.50404,62581.0,62580.0,0.003]
[1728406886917,0.079953,62573.0,62572.0,0.07995]
[1728406887111,0.259953,62573.0,62572.0,0.07995]
[1728406887413,0.079953,62571.0,62570.0,0.38962804]
[1728406887616,0.079953,62571.0,62570.0,0.46958204]
[1728406888415,0.5408,62576.0,62572.0,0.008]
[1728406888606,0.07995,62573.0,62572.0,0.008]
[1728406889008,0.07995,62573.0,62572.0,0.083951]
[1728406889913,0.07995,62573.0,62572.0,0.087951]
[1728406890114,0.07995,62573.0,62572.0,0.083951]
[1728406891015,0.07995,62573.0,62572.0,0.087951]
[1728406892324,0.07995,62573.0,62572.0,0.20980321]
[1728406892916,0.07995,62573.0,62572.0,0.12985221]
[1728406893611,0.25995,62573.0,62572.0,0.12985221]
[1728406893922,0.25995,62573.0,62572.0,0.008]
[1728406895416,0.079955,62569.0,62568.0,0.00239666]
[1728406895629,0.259955,62569.0,62568.0,0.00239666]
[1728406896421,0.739435,62569.0,62568.0,0.00239666]
[1728406896717,0.079955,62569.0,62568.0,0.00239666]
[1728406897016,0.001,62569.0,62568.0,0.087957]
[1728406897221,0.03189159,62569.0,62568.0,0.267957]
[1728406897521,0.001,62569.0,62568.0,0.087957]
[1728406897925,0.002,62569.0,62568.0,0.095957]
[1728406899426,0.081955,62569.0,62568.0,0.095957]
[1728406900517,0.002,62569.0,62568.0,0.095957]
[1728406902931,0.081955,62569.0,62568.0,0.095957]
[1728406904026,0.002,62569.0,62568.0,0.095957]
[1728406904227,0.079952,62572.0,62571.0,0.079953]
[1728406904726,0.18,62575.0,62568.0,0.09503085]
[1728406904923,0.07995,62574.0,62573.0,0.07995]
[1728406907017,0.07995,62574.0,62573.0,0.08295]
[1728406907429,0.25995,62574.0,62573.0,0.08295]
[1728406907828,0.25995,62574.0,62573.0,0.08595]
[1728406908022,0.25995,62574.0,62573.0,0.006]
[1728406908232,0.25995,62574.0,62573.0,0.06929132]
[1728406908528,0.83939,62574.0,62573.0,0.06931153]
[1728406909117,0.83939,62574.0,62573.0,0.006]
[1728406910317,0.83939,62574.0,62573.0,0.06931153]
[1728406911124,0.83939,62574.0,62573.0,0.006]
[1728406912125,0.3199406,62574.0,62573.0,0.006]
[1728406913427,0.3199406,62574.0,62573.0,0.06935836]
[1728406915921,0.3199406,62574.0,62573.0,0.006]
[1728406916117,0.079957,62568.0,62567.0,0.07919953]
[1728406916322,0.079957,62568.0,62560.0,0.08236449]
[1728406916323,0.079965,62561.0,62560.0,0.08236449]
[1728406916524,0.259965,62561.0,62560.0,0.08236449]
[1728406916924,0.259965,62561.0,62560.0,0.00239749]